fUSD/lending_fUSD_20240517
["ID","MTS","AMOUNT","RATE_DAILY","PERIOD"]
[327313427,1715980251790,-500.0,0.00019178,2]
[327313428,1715980251799,-500.0,0.00019178,2]
[327313429,1715980251808,-500.0,0.00019178,2]
[327313430,1715980251818,-500.0,0.00019178,2]
[327313431,1715980251828,-598.1517012,0.00019178,2]
[327313432,1715980251837,-500.0,0.00019178,2]
[327313433,1715980251846,-500.0,0.00019178,2]
[327313434,1715980251856,-500.0,0.00019178,2]
[327313435,1715980251867,-500.0,0.00019178,2]
[327313436,1715980251879,-500.0,0.00019178,2]
[327313437,1715980251889,-500.0,0.00019178,2]
[327313438,1715980251898,-500.0,0.00019178,2]
[327313439,1715980251907,-500.0,0.00019178,2]
[327313440,1715980251917,-500.0,0.00019178,2]
[327313441,1715980251927,-500.0,0.00019178,2]
[327313442,1715980251936,-500.0,0.00019178,2]
[327313443,1715980251949,-500.0,0.00019178,2]
[327313444,1715980251958,-500.0,0.00019178,2]
[327313445,1715980251968,-500.0,0.00019178,2]
[327313446,1715980251977,-500.0,0.00019178,2]
[327313447,1715980251987,-274.55010009,0.00019178,2]
[327313448,1715980251996,-500.0,0.00019178,2]
[327313449,1715980252006,-500.0,0.00019178,2]
[327313450,1715980252015,-219.89993232,0.00019178,2]
[327313451,1715980252025,-522.98184627,0.00019178,2]
[327313452,1715980252034,-500.0,0.00019178,2]
[327313453,1715980252044,-500.0,0.00019178,2]
[327313454,1715980252054,-500.0,0.00019178,2]
[327313455,1715980252063,-522.98184627,0.00019178,2]
[327313456,1715980252072,-500.0,0.00019178,2]
[327313457,1715980252082,-500.0,0.00019178,2]
[327313458,1715980252091,-522.98184627,0.00019178,2]
[327313459,1715980252101,-500.0,0.00019178,2]
[327313460,1715980252111,-500.0,0.00019178,2]
[327313461,1715980252120,-500.0,0.00019178,2]
[327313462,1715980252129,-522.98184627,0.00019178,2]
[327313463,1715980252138,-500.0,0.00019178,2]
[327313464,1715980252147,-522.98184627,0.00019178,2]
[327313465,1715980252157,-522.98184627,0.00019178,2]
[327313466,1715980252166,-500.0,0.00019178,2]
[327313467,1715980252175,-500.0,0.00019178,2]
[327313468,1715980252186,-522.98184627,0.00019178,2]
[327313469,1715980252195,-522.98184627,0.00019178,2]
[327313470,1715980252205,-500.0,0.00019178,2]
[327313471,1715980252215,-522.98184627,0.00019178,2]
[327313472,1715980252224,-500.0,0.00019178,2]
[327313473,1715980252234,-500.0,0.00019178,2]
[327313474,1715980252244,-522.98184627,0.00019178,2]
[327313475,1715980252254,-500.0,0.00019178,2]
[327313476,1715980252263,-500.0,0.00019178,2]
[327313477,1715980252329,-522.98184627,0.00019178,2]
[327313478,1715980252339,-500.0,0.00019178,2]
[327313479,1715980252348,-522.98184627,0.00019178,2]
[327313480,1715980252358,-522.98184627,0.00019178,2]
[327313481,1715980252367,-500.0,0.00019178,2]
[327313482,1715980252377,-522.98184627,0.00019178,2]
[327313483,1715980252387,-500.0,0.00019178,2]
[327313484,1715980252396,-500.0,0.00019178,2]
[327313485,1715980252406,-500.0,0.00019178,2]
[327313486,1715980252415,-522.98184627,0.00019178,2]
[327313487,1715980252424,-178.83292476,0.00019178,2]
[327313488,1715980252433,-522.98184627,0.00019178,2]
[327313489,1715980252443,-500.0,0.00019178,2]
[327313490,1715980252453,-500.0,0.00019178,2]
[327313491,1715980252462,-500.0,0.00019178,2]
[327313492,1715980252471,-522.98184627,0.00019178,2]
[327313493,1715980252480,-500.0,0.00019178,2]
[327313494,1715980252490,-500.0,0.00019178,2]
[327313495,1715980252499,-500.0,0.00019178,2]
[327313496,1715980252508,-522.98184627,0.00019178,2]
[327313497,1715980252517,-522.98184627,0.00019178,2]
[327313498,1715980252526,-500.0,0.00019178,2]
[327313499,1715980252536,-500.0,0.00019178,2]
[327313500,1715980252545,-522.98184627,0.00019178,2]
[327313501,1715980252554,-500.0,0.00019178,2]
[327313502,1715980252564,-500.0,0.00019178,2]
[327313503,1715980252573,-500.0,0.00019178,2]
[327313504,1715980252582,-522.98184627,0.00019178,2]
[327313505,1715980252591,-500.0,0.00019178,2]
[327313506,1715980252601,-522.98184627,0.00019178,2]
[327313507,1715980252611,-500.0,0.00019178,2]
[327313508,1715980252620,-500.0,0.00019178,2]
[327313509,1715980252629,-500.0,0.00019178,2]
[327313510,1715980252639,-500.0,0.00019178,2]
[327313511,1715980252648,-500.0,0.00019178,2]
[327313512,1715980252657,-522.98184627,0.00019178,2]
[327313513,1715980252666,-512.51362466,0.00019178,2]
[327313514,1715980252676,-317.4098148,0.00019178,2]
[327313515,1715980252685,-522.98184627,0.00019178,2]
[327313516,1715980252695,-475.01640546,0.00019178,2]
[327313517,1715980252704,-522.98184627,0.00019178,2]
[327313518,1715980252713,-500.0,0.00019178,2]
[327313519,1715980252722,-544.59442834,0.00019178,2]
[327313520,1715980252731,-522.98184627,0.00019178,2]
[327313521,1715980252739,-522.98184627,0.00019178,2]
[327313522,1715980252749,-500.0,0.00019178,2]
[327313523,1715980252759,-522.98184627,0.00019178,2]
[327313524,1715980252767,-500.0,0.00019178,2]
[327313525,1715980252776,-522.98184627,0.00019178,2]
[327313526,1715980252786,-500.0,0.00019178,2]
[327313527,1715980252796,-522.98184627,0.00019178,2]
[327313528,1715980252806,-522.98184627,0.00019178,2]
[327313529,1715980252815,-522.98184627,0.00019178,2]
[327313530,1715980252825,-500.0,0.00019178,2]
[327313531,1715980252835,-522.98184627,0.00019178,2]
[327313532,1715980252845,-522.98184627,0.00019178,2]
[327313533,1715980252854,-522.98184627,0.00019178,2]
[327313534,1715980252864,-522.98184627,0.00019178,2]
[327313535,1715980252879,-522.98184627,0.00019178,2]
[327313536,1715980252889,-522.98184627,0.00019178,2]
[327313537,1715980252900,-522.98184627,0.00019178,2]
[327313538,1715980252911,-522.98184627,0.00019178,2]
[327313539,1715980252923,-500.0,0.00019178,2]
[327313540,1715980252932,-522.98184627,0.00019178,2]
[327313541,1715980252942,-500.0,0.00019178,2]
[327313542,1715980252955,-522.98184627,0.00019178,2]
[327313543,1715980252966,-500.0,0.00019178,2]
[327313544,1715980252976,-522.98184627,0.00019178,2]
[327313545,1715980252985,-500.0,0.00019178,2]
[327313546,1715980252995,-522.98184627,0.00019178,2]
[327313547,1715980253005,-522.98184627,0.00019178,2]
[327313548,1715980253016,-522.98184627,0.00019178,2]
[327313549,1715980253026,-503.52998864,0.00019178,2]
[327313550,1715980253035,-500.0,0.00019178,2]
[327313551,1715980253045,-499.99999999,0.00019178,2]
[327313552,1715980253054,-1169.50377176,0.00019178,2]
[327313553,1715980253063,-1169.50377176,0.00019178,2]
[327313554,1715980253072,-500.0,0.00019178,2]
[327313555,1715980253081,-1169.50377176,0.00019178,2]
[327313556,1715980253090,-500.0,0.00019178,2]
[327313557,1715980253099,-500.0,0.00019178,2]
[327313558,1715980253108,-1169.50377176,0.00019178,2]
[327313559,1715980253117,-500.0,0.00019178,2]
[327313560,1715980253127,-1169.50377176,0.00019178,2]
[327313561,1715980253136,-500.0,0.00019178,2]
[327313562,1715980253145,-1169.50377176,0.00019178,2]
[327313563,1715980253155,-500.0,0.00019178,2]
[327313564,1715980253165,-1169.50377176,0.00019178,2]
[327313565,1715980253174,-500.0,0.00019178,2]
[327313566,1715980253183,-500.0,0.00019178,2]
[327313567,1715980253193,-1169.50377176,0.00019178,2]
[327313568,1715980253202,-250.0,0.00019178,2]
[327313569,1715980253211,-500.0,0.00019178,2]
[327313570,1715980253220,-1169.50377176,0.00019178,2]
[327313571,1715980253229,-500.0,0.00019178,2]
[327313572,1715980253238,-1169.50377176,0.00019178,2]
[327313573,1715980253247,-280.00000001,0.00019178,2]
[327313574,1715980253256,-1169.50377176,0.00019178,2]
[327313575,1715980253265,-1169.50377176,0.00019178,2]
[327313576,1715980253274,-500.0,0.00019178,2]
[327313577,1715980253283,-500.0,0.00019178,2]
[327313578,1715980253292,-1169.50377176,0.00019178,2]
[327313579,1715980253302,-1169.50377176,0.00019178,2]
[327313580,1715980253310,-1169.50377176,0.00019178,2]
[327313581,1715980253319,-500.0,0.00019178,2]
[327313582,1715980253329,-1169.50377176,0.00019178,2]
[327313583,1715980253338,-500.0,0.00019178,2]
[327313584,1715980253348,-1169.50377176,0.00019178,2]
[327313585,1715980253357,-1169.50377176,0.00019178,2]
[327313586,1715980253366,-1169.50377176,0.00019178,2]
[327313587,1715980253375,-500.0,0.00019178,2]
[327313588,1715980253384,-1169.50377176,0.00019178,2]
[327313589,1715980253393,-500.0,0.00019178,2]
[327313590,1715980253402,-500.0,0.00019178,2]
[327313591,1715980253412,-350.0,0.00019178,2]
[327313592,1715980253421,-500.0,0.00019178,2]
[327313593,1715980253430,-1169.50377176,0.00019178,2]
[327313594,1715980253440,-500.0,0.00019178,2]
[327313595,1715980253449,-1169.50377176,0.00019178,2]
[327313596,1715980253458,-500.0,0.00019178,2]
[327313597,1715980253467,-1169.50377176,0.00019178,2]
[327313598,1715980253477,-500.0,0.00019178,2]
[327313599,1715980253486,-1169.50377176,0.00019178,2]
[327313600,1715980253495,-500.0,0.00019178,2]
[327313601,1715980253504,-1169.50377176,0.00019178,2]
[327313602,1715980253513,-500.0,0.00019178,2]
[327313603,1715980253522,-1169.50377176,0.00019178,2]
[327313604,1715980253531,-1169.50377185,0.00019178,2]
[327313605,1715980253540,-200.0,0.00019178,2]
[327313606,1715980253549,-200.0,0.00019178,2]
[327313607,1715980253558,-200.0,0.00019178,2]
[327313608,1715980253567,-200.0,0.00019178,2]
[327313609,1715980253576,-200.0,0.00019178,2]
[327313610,1715980253585,-200.0,0.00019178,2]
[327313611,1715980253594,-173.0,0.00019178,2]
[327313612,1715980253603,-55000.0,0.00019178,2]
[327313613,1715980253613,-3131.59,0.00019178,2]
[327313614,1715980253623,-10126.6,0.00019178,2]
[327313615,1715980253632,-200.0,0.00019178,7]
[327313616,1715980253641,-150.25232363,0.00019185,2]
[327313617,1715980253650,-635.32,0.00019199,2]
[327313618,1715980253660,-13402.07915297,0.000192,2]
[327313619,1715980253669,-812.68,0.000192,2]
[327313620,1715980253677,-678.34,0.000192,2]
[327313621,1715980253687,-718.17,0.000192,2]
[327313622,1715980253696,-154.74831958,0.00019215,2]
[327313623,1715980253705,-742.75,0.00019227,7]
[327313624,1715980253714,-742.75,0.00019227,7]
[327313625,1715980253723,-742.75,0.00019227,7]
[327313626,1715980253732,-742.75,0.00019227,7]
[327313627,1715980253741,-166.66666668,0.00019235,2]
[327313628,1715980253750,-775.24820544,0.00019242,2]
[327313629,1715980253759,-150.63567191,0.0001925,2]
[327313630,1715980253768,-775.24820544,0.00019279,2]
[327313631,1715980253778,-157.71739218,0.00019298,2]
[327313632,1715980253787,-510.43036732,0.00019311,2]
[327313633,1715980253796,-157.33741901,0.00019322,2]
[327313634,1715980253806,-150.63567191,0.00019335,2]
[327313635,1715980253816,-1002.75,0.00019347,15]
[327313636,1715980253825,-156.49084933,0.00019402,2]
[327313637,1715980253835,-155.95810749,0.00019419,2]
[327313638,1715980253844,-314.051805,0.00019448,2]
[327313639,1715980253854,-25302.0,0.00019451,4]
[327313640,1715980253864,-150.25232363,0.00019492,2]
[327313641,1715980253879,-742.75,0.000195,7]
[327313642,1715980253888,-742.75,0.000195,7]
[327313643,1715980253897,-1087.39377194,0.000195,2]
[327313644,1715980253912,-150.0,0.000195,2]
[327313645,1715980253922,-510.43036732,0.00019514,2]
[327313646,1715980253932,-500.0,0.0001953,2]
[327313647,1715980253943,-500.0,0.00019539,2]
[327313648,1715980253955,-500.0,0.00019548,2]
[327313649,1715980253966,-500.0,0.00019557,2]
[327313650,1715980253977,-150.5,0.0001956,15]
[327313651,1715980253987,-150.5,0.0001956,15]
[327313652,1715980253997,-150.5,0.0001956,15]
[327313653,1715980254008,-150.5,0.0001956,15]
[327313654,1715980254017,-150.5,0.0001956,15]
[327313655,1715980254027,-1185.0,0.0001956,15]
[327313656,1715980254037,-150.5,0.0001956,15]
[327313657,1715980254046,-150.5,0.0001956,15]
[327313658,1715980254055,-150.5,0.0001956,15]
[327313659,1715980254065,-982.0,0.0001956,15]
[327313660,1715980254074,-150.5,0.0001956,15]
[327313661,1715980254083,-500.0,0.00019566,2]
[327313662,1715980254093,-150.5,0.0001957,15]
[327313663,1715980254102,-150.5,0.0001957,15]
[327313664,1715980254113,-150.5,0.0001957,15]
[327313665,1715980254122,-1185.0,0.0001957,15]
[327313666,1715980254131,-150.5,0.0001957,15]
[327313667,1715980254142,-150.5,0.0001957,15]
[327313668,1715980254151,-982.0,0.0001957,15]
[327313669,1715980254161,-150.5,0.0001957,15]
[327313670,1715980254171,-154.15,0.0001957,15]
[327313671,1715980254181,-152.61,0.0001957,15]
[327313672,1715980254191,-150.5,0.0001957,15]
[327313673,1715980254200,-500.0,0.00019573,2]
[327313674,1715980254211,-16000.0,0.00019574,2]
[327313675,1715980254220,-500.0,0.00019574,2]
[327313676,1715980254230,-150.5,0.0001958,15]
[327313677,1715980254239,-150.5,0.0001958,15]
[327313678,1715980254249,-1185.0,0.0001958,15]
[327313679,1715980254259,-150.5,0.0001958,15]
[327313680,1715980254268,-150.5,0.0001958,15]
[327313681,1715980254278,-982.0,0.0001958,15]
[327313682,1715980254287,-150.5,0.0001958,15]
[327313683,1715980254298,-150.5,0.0001958,15]
[327313684,1715980254307,-150.5,0.0001958,15]
[327313685,1715980254317,-500.0,0.00019582,2]
[327313686,1715980254327,-638.84384471,0.00019582,2]
[327313687,1715980254336,-499.96764014,0.00019582,2]
[327313688,1715980254347,-500.0,0.00019582,2]
[327313689,1715980254356,-16000.0,0.00019583,2]
[327313690,1715980254366,-500.0,0.00019583,2]
[327313691,1715980254376,-219.53001879,0.00019608,2]
[327313692,1715980254385,-150.0337778,0.00019625,2]
[327313693,1715980254396,-242.0,0.0001963,2]
[327313694,1715980254405,-206.0,0.0001963,2]
[327313695,1715980254415,-379.04053636,0.00019671,2]
[327313696,1715980254425,-150.25232363,0.00019677,2]
[327313697,1715980254435,-1013.54,0.00019685,2]
[327313698,1715980254445,-152.14,0.00019706,15]
[327313699,1715980254455,-150.5,0.00019706,15]
[327313700,1715980254465,-150.5,0.00019706,15]
[327313701,1715980254474,-150.5,0.00019706,15]
[327313702,1715980254484,-150.5,0.00019706,15]
[327313703,1715980254494,-154.51679898,0.00019715,2]
[327313704,1715980254504,-150.5,0.00019716,15]
[327313705,1715980254513,-150.5,0.00019716,15]
[327313706,1715980254523,-150.5,0.00019716,15]
[327313707,1715980254533,-150.5,0.00019716,15]
[327313708,1715980254543,-150.5,0.00019716,15]
[327313709,1715980254553,-150.5,0.00019716,15]
[327313710,1715980254563,-314.051805,0.00019748,2]
[327313711,1715980254574,-167.0,0.00019753,2]
[327313712,1715980254584,-742.75,0.00019773,7]
[327313713,1715980254593,-742.75,0.00019773,7]
[327313714,1715980254604,-153.90576894,0.00019776,2]
[327313715,1715980254615,-150.25232363,0.00019783,2]
[327313716,1715980254626,-775.24820544,0.00019804,2]
[327313717,1715980254635,-219.53001879,0.00019805,2]
[327313718,1715980254645,-510.43036732,0.00019827,2]
[327313719,1715980254654,-379.04053636,0.0001983,2]
[327313720,1715980254665,-158.50296534,0.00019849,2]
[327313721,1715980254676,-152.84858728,0.000199,2]
[327313722,1715980254685,-2900.0,0.000199,7]
[327313723,1715980254695,-2923.06,0.000199,2]
[327313724,1715980254705,-2923.06,0.000199,2]
[327313725,1715980254715,-2923.06,0.000199,2]
[327313726,1715980254725,-2923.06,0.000199,2]
[327313727,1715980254736,-2923.06,0.000199,2]
[327313728,1715980254746,-2923.06,0.000199,2]
[327313729,1715980254757,-2923.06,0.000199,2]
[327313730,1715980254767,-2923.06,0.000199,2]
[327313731,1715980254777,-2923.06,0.000199,2]
[327313732,1715980254788,-2923.06,0.000199,2]
[327313733,1715980254798,-2923.06,0.000199,2]
[327313734,1715980254808,-2923.06,0.000199,2]
[327313735,1715980254819,-2923.06,0.000199,2]
[327313736,1715980254829,-2923.06,0.000199,2]
[327313737,1715980254839,-2923.06,0.000199,2]
[327313738,1715980254850,-2923.06,0.000199,2]
[327313739,1715980254860,-2923.06,0.000199,2]
[327313740,1715980254874,-2923.06,0.000199,2]
[327313741,1715980254885,-2923.06,0.000199,2]
[327313742,1715980254896,-2923.06,0.000199,2]
[327313743,1715980254906,-219.53001879,0.0001996,2]
[327313744,1715980254918,-2000.0,0.0002,15]
[327313745,1715980254928,-160.0,0.0002,2]
[327313746,1715980254938,-2422.649526,0.0002,2]
[327313747,1715980254948,-3401.81326346,0.0002,2]
[327313748,1715980254958,-14363.22193944,0.0002,2]
[327313749,1715980254969,-11937.63499268,0.0002,2]
[327313750,1715980254978,-235.13278988,0.0002,2]
[327313751,1715980254988,-155.0,0.0002,2]
[327313752,1715980254998,-307.75032716,0.0002,2]
[327313753,1715980255007,-1204.5289537,0.0002,2]
[327313754,1715980255017,-1984.91295036,0.0002,2]
[327313755,1715980255026,-150.0,0.0002,7]
[327313756,1715980255036,-150.0,0.0002,2]
[327313757,1715980255047,-379.04053636,0.00020014,2]
[327313758,1715980255056,-742.75,0.00020046,7]
[327313759,1715980255066,-742.75,0.00020046,7]
[327313760,1715980255076,-379.04053636,0.00020066,2]
[327313761,1715980255086,-2528.56758112,0.00020076,2]
[327313762,1715980255095,-154.74831958,0.00020118,2]
[327313763,1715980255105,-153.90576894,0.00020118,2]
[327313764,1715980255115,-150.25232363,0.00020123,2]
[327313765,1715980255124,-150.63567191,0.00020133,2]
[327313766,1715980255135,-314.051805,0.00020148,4]
[327313767,1715980255144,-510.43036732,0.00020181,2]
[327313768,1715980255154,-379.04053636,0.00020265,2]
[327313769,1715980255163,-742.75,0.00020319,7]
[327313770,1715980255174,-742.75,0.00020319,7]
[327313771,1715980255184,-167.0,0.00020329,2]
[327313772,1715980255194,-775.24820544,0.0002033,2]
[327313773,1715980255204,-775.24820544,0.0002034,2]
[327313774,1715980255214,-242.0,0.0002038,2]
[327313775,1715980255224,-206.0,0.0002038,2]
[327313776,1715980255233,-353.14,0.0002041,2]
[327313777,1715980255243,-877.98,0.00020447,2]
[327313778,1715980255253,-154.74831958,0.00020448,2]
[327313779,1715980255263,-314.051805,0.00020448,4]
[327313780,1715980255273,-411.8111725,0.00020465,2]
[327313781,1715980255283,-500.0,0.00020465,2]
[327313782,1715980255293,-500.0,0.00020465,2]
[327313783,1715980255303,-374.19500856,0.000205,2]
[327313784,1715980255312,-150.0,0.000205,8]
[327313785,1715980255323,-510.43036732,0.00020504,2]
[327313786,1715980255333,-775.24820544,0.00020523,2]
[327313787,1715980255343,-170.72,0.00020548,2]
[327313788,1715980255353,-155.95810749,0.00020559,2]
[327313789,1715980255363,-1013.54,0.0002058,2]
[327313790,1715980255374,-156.49084933,0.00020589,2]
[327313791,1715980255384,-742.75,0.00020593,7]
[327313792,1715980255394,-742.75,0.00020593,7]
[327313793,1715980255404,-163.92345761,0.00020635,2]
[327313794,1715980255414,-151.0,0.00020658,2]
[327313795,1715980255424,-297.3,0.00020708,2]
[327313796,1715980255434,-166.66666667,0.00020736,2]
[327313797,1715980255444,-314.051805,0.00020748,4]
[327313798,1715980255454,-775.24820544,0.0002077,2]
[327313799,1715980255464,-510.43036732,0.0002077,2]
[327313800,1715980255475,-154.74831958,0.00020773,2]
[327313801,1715980255485,-150.63567191,0.00020839,2]
[327313802,1715980255496,-742.75,0.00020866,7]
[327313803,1715980255506,-742.75,0.00020866,7]
[327313804,1715980255517,-510.43036732,0.00020894,2]
[327313805,1715980255527,-219.53001879,0.00020898,2]
[327313806,1715980255537,-812.68,0.000209,2]
[327313807,1715980255547,-678.34,0.000209,2]
[327313808,1715980255558,-718.17,0.000209,2]
[327313809,1715980255567,-219.53001879,0.00020903,2]
[327313810,1715980255577,-305.939,0.00020905,2]
[327313811,1715980255587,-439.0,0.00020905,2]
[327313812,1715980255597,-152.84858728,0.00020908,2]
[327313813,1715980255608,-510.43036732,0.00020929,2]
[327313814,1715980255617,-156.49084933,0.00020931,2]
[327313815,1715980255626,-1377.13975845,0.00021,2]
[327313816,1715980255636,-150.0,0.00021,9]
[327313817,1715980255647,-166.66666666,0.00021,2]
[327313818,1715980255656,-155.95810749,0.00021035,2]
[327313819,1715980255666,-242.0,0.0002113,2]
[327313820,1715980255678,-206.0,0.0002113,2]
[327313821,1715980255687,-742.75,0.00021139,7]
[327313822,1715980255697,-742.75,0.00021139,7]
[327313823,1715980255707,-314.051805,0.00021148,6]
[327313824,1715980255716,-379.04053636,0.00021151,2]
[327313825,1715980255727,-219.53001879,0.00021187,2]
[327313826,1715980255736,-379.04053636,0.00021273,2]
[327313827,1715980255746,-379.04053636,0.00021284,2]
[327313828,1715980255756,-4174.54161707,0.00021307,2]
[327313829,1715980255767,-635.32,0.0002131,2]
[327313830,1715980255776,-379.04053636,0.0002133,2]
[327313831,1715980255787,-158.50296534,0.00021359,2]
[327313832,1715980255796,-219.53001879,0.00021367,2]
[327313833,1715980255806,-742.75,0.00021412,7]
[327313834,1715980255816,-742.75,0.00021412,7]
[327313835,1715980255826,-4045.75892456,0.00021421,2]
[327313836,1715980255836,-314.051805,0.00021448,8]
[327313837,1715980255847,-1013.54,0.00021475,2]
[327313838,1715980255858,-510.43036732,0.00021476,2]
[327313839,1715980255870,-150.0,0.000215,9]
[327313840,1715980255882,-155.95810749,0.00021507,2]
[327313841,1715980255892,-775.24820544,0.00021515,2]
[327313842,1715980256042,-150.25232363,0.0002152,2]
[327313843,1715980256052,-500.0,0.00021561,2]
[327313844,1715980256061,-500.0,0.00021561,2]
[327313845,1715980256071,-152.84858728,0.00021586,2]
[327313846,1715980256080,-166.66666667,0.00021589,2]
[327313847,1715980256090,-157.66903106,0.00021612,2]
[327313848,1715980256103,-152.84858728,0.00021613,2]
[327313849,1715980256115,-510.43036732,0.00021676,2]
[327313850,1715980256124,-742.75,0.00021686,7]
[327313851,1715980256133,-742.75,0.00021686,7]
[327313852,1715980256143,-154.74831958,0.00021717,2]
[327313853,1715980256153,-155.95810749,0.00021735,2]
[327313854,1715980256163,-314.051805,0.00021748,8]
[327313855,1715980256175,-775.24820544,0.00021768,2]
[327313856,1715980256187,-3336.3254,0.000218,2]
[327313857,1715980256196,-219.53001879,0.00021804,2]
[327313858,1715980256206,-242.0,0.0002188,2]
[327313859,1715980256215,-206.0,0.0002188,2]
[327313860,1715980256227,-219.53001879,0.00021898,2]
[327313861,1715980256238,-12988.60210523,0.000219,2]
[327313862,1715980256250,-1000.0,0.000219,2]
[327313863,1715980256260,-192.62,0.00021918,2]
[327313864,1715980256269,-3006.2,0.00021918,2]
[327313865,1715980256278,-2000.0,0.00021918,2]
[327313866,1715980256289,-200.0,0.00021918,7]
[327313867,1715980256300,-379.04053636,0.00021935,2]
[327313868,1715980256310,-152.84858728,0.00021942,2]
[327313869,1715980256321,-775.24820544,0.00021954,2]
[327313870,1715980256332,-742.75,0.00021959,7]
[327313871,1715980256342,-742.75,0.00021959,7]
[327313872,1715980256353,-155.95810749,0.00021995,2]
[327313873,1715980256363,-219.53001879,0.00021999,2]
[327313874,1715980256371,-10594.09604008,0.00022,2]
[327313875,1715980256382,-150.0,0.00022,10]
[327313876,1715980256392,-379.04053636,0.00022016,2]
[327313877,1715980256402,-166.66666666,0.00022031,2]
[327313878,1715980256413,-2528.56758112,0.0002204,2]
[327313879,1715980256423,-510.43036732,0.00022129,2]
[327313880,1715980256435,-314.051805,0.00022148,10]
[327313881,1715980256445,-155.95810749,0.00022162,2]
[327313882,1715980256455,-219.53001879,0.0002222,2]
[327313883,1715980256466,-510.43036732,0.00022238,2]
[327313884,1715980256476,-219.53001879,0.00022301,2]
[327313885,1715980256485,-154.74831958,0.00022324,2]
[327313886,1715980256494,-1002.75,0.00022336,15]
[327313887,1715980256504,-155.95810749,0.00022346,2]
[327313888,1715980256513,-800.0,0.00022356,2]
[327313889,1715980256522,-1013.54,0.0002237,2]
[327313890,1715980256532,-153.90576894,0.00022391,2]
[327313891,1715980256541,-379.04053636,0.00022422,2]
[327313892,1715980256550,-158.96537893,0.00022432,2]
[327313893,1715980256559,-314.051805,0.00022448,10]
[327313894,1715980256569,-150.0,0.000225,10]
[327313895,1715980256578,-155.95810749,0.00022511,2]
[327313896,1715980256587,-154.74831958,0.00022512,2]
[327313897,1715980256597,-155.56019282,0.00022539,2]
[327313898,1715980256606,-187.26040933,0.00022561,2]
[327313899,1715980256616,-150.03377781,0.00022568,2]
[327313900,1715980256625,-154.74831966,0.00022583,2]
[327313901,1715980256635,-1000.0,0.000226,2]
[327313902,1715980256644,-223.0,0.000226,2]
[327313903,1715980256653,-353.0,0.000226,2]
[327313904,1715980256662,-242.0,0.0002262,2]
[327313905,1715980256672,-206.0,0.0002262,2]
[327313906,1715980256681,-500.0,0.00022657,2]
[327313907,1715980256690,-500.0,0.00022657,2]
[327313908,1715980256699,-1000.0,0.00022699,2]
[327313909,1715980256708,-812.68,0.000227,2]
[327313910,1715980256717,-678.34,0.000227,2]
[327313911,1715980256726,-718.17,0.000227,2]
[327313912,1715980256736,-314.051805,0.00022748,10]
[327313913,1715980256745,-155.95810749,0.00022765,2]
[327313914,1715980256755,-379.04053636,0.00022799,2]
[327313915,1715980256763,-152.84858728,0.00022875,2]
[327313916,1715980256773,-408.7557,0.00022892,2]
[327313917,1715980256782,-510.43036732,0.00022935,2]
[327313918,1715980256791,-297.3,0.00022971,2]
[327313919,1715980256800,-155.95810749,0.00022976,2]
[327313920,1715980256810,-154.75954021,0.00022978,2]
[327313921,1715980256819,-156.49084933,0.00022997,2]
[327313922,1715980256827,-155.0,0.00023,2]
[327313923,1715980256836,-150.0,0.00023,11]
[327313924,1715980256845,-172.0,0.00023,2]
[327313925,1715980256855,-775.24820544,0.00023024,2]
[327313926,1715980256865,-379.04053636,0.0002304,2]